[Event "GrandPrix_30.05"]
[Site "Chess.com"]
[Date "2020.05.30"]
[Round "6"]
[White "KacperKacprzak"]
[Black "Grebnev_A"]
[Result "0-1"]
[WhiteElo "2063"]
[BlackElo "2203"]
[TimeControl "600+2"]
[EndTime "10:48:50 PDT"]
[Termination "Grebnev_A won by checkmate"]

1. e4 {[%clk 0:09:48.1]} 1... e6 {[%clk 0:10:00.8]} 2. d4 {[%clk 0:09:47.4]}
2... d5 {[%clk 0:10:02]} 3. Nc3 {[%clk 0:09:46.9]} 3... Bb4 {[%clk 0:10:02.4]}
4. e5 {[%clk 0:09:47]} 4... c5 {[%clk 0:10:03.4]} 5. a3 {[%clk 0:09:47.1]} 5...
Bxc3+ {[%clk 0:10:04.2]} 6. bxc3 {[%clk 0:09:49]} 6... Ne7 {[%clk 0:10:05.8]} 7.
Qg4 {[%clk 0:09:31.2]} 7... Qc7 {[%clk 0:10:06.1]} 8. Qxg7 {[%clk 0:09:30.2]}
8... Rg8 {[%clk 0:10:07]} 9. Qxh7 {[%clk 0:09:31.6]} 9... cxd4 {[%clk
0:10:08.9]} 10. Ne2 {[%clk 0:09:31.5]} 10... Nbc6 {[%clk 0:10:10.3]} 11. f4
{[%clk 0:09:32.1]} 11... dxc3 {[%clk 0:10:11.2]} 12. Be3 {[%clk 0:09:31.1]}
12... Bd7 {[%clk 0:10:06.7]} 13. Qd3 {[%clk 0:09:23.3]} 13... O-O-O {[%clk
0:10:04.7]} 14. Nd4 {[%clk 0:09:19.7]} 14... Nxd4 {[%clk 0:09:56.1]} 15. Bxd4
{[%clk 0:09:21.6]} 15... Nf5 {[%clk 0:09:57.1]} 16. g3 {[%clk 0:09:18.3]} 16...
Bb5 {[%clk 0:09:46.8]} 17. Qxc3 {[%clk 0:08:52.8]} 17... Nxd4 {[%clk 0:09:47.8]}
18. Qxd4 {[%clk 0:08:52.1]} 18... Bxf1 {[%clk 0:09:48.5]} 19. Rxf1 {[%clk
0:08:46.8]} 19... Kb8 {[%clk 0:09:45.7]} 20. Rf2 {[%clk 0:08:35.8]} 20... Rc8
{[%clk 0:09:32.5]} 21. Rb1 {[%clk 0:08:35.4]} 21... Qd7 {[%clk 0:09:25.9]} 22.
Rb4 {[%clk 0:08:29.6]} 22... Rc7 {[%clk 0:09:21.8]} 23. Kd1 {[%clk 0:06:44.4]}
23... Rgc8 {[%clk 0:09:19.1]} 24. h4 {[%clk 0:06:37.4]} 24... Qc6 {[%clk
0:09:17.4]} 25. Rb3 {[%clk 0:06:25.3]} 25... Qa6 {[%clk 0:09:13.6]} 26. h5
{[%clk 0:06:16.1]} 26... Rxc2 {[%clk 0:08:58.4]} 27. Rxc2 {[%clk 0:03:47.6]}
27... Qf1+ {[%clk 0:08:57]} 28. Kd2 {[%clk 0:03:48.8]} 28... Qg2+ {[%clk
0:08:56.4]} 29. Ke3 {[%clk 0:03:50]} 29... Qxg3+ {[%clk 0:08:30]} 30. Kd2 {[%clk
0:03:47.4]} 30... Qg2+ {[%clk 0:08:29.5]} 31. Ke3 {[%clk 0:03:48.7]} 31... Qxc2
{[%clk 0:06:51.6]} 32. Qb4 {[%clk 0:03:11.3]} 32... d4+ {[%clk 0:05:48.7]} 33.
Kxd4 {[%clk 0:03:01]} 33... Qf2+ {[%clk 0:05:47]} 34. Ke4 {[%clk 0:02:53.5]}
34... Qe2+ {[%clk 0:05:44.3]} 35. Kd4 {[%clk 0:02:45.1]} 35... Rd8+ {[%clk
0:05:43.7]} 36. Kc5 {[%clk 0:02:41.6]} 36... Rd5# {[%clk 0:05:43.9]} 0-1

[Event "GrandPrix_30.05"]
[Site "Chess.com"]
[Date "2020.05.30"]
[Round "6"]
[White "DenisQ"]
[Black "zuagroasta"]
[Result "1-0"]
[WhiteElo "2208"]
[BlackElo "1975"]
[TimeControl "600+2"]
[EndTime "10:48:58 PDT"]
[Termination "DenisQ won by resignation"]

1. c4 {[%clk 0:10:01.9]} 1... e6 {[%clk 0:09:58.4]} 2. Nf3 {[%clk 0:09:59.8]}
2... d5 {[%clk 0:09:56.8]} 3. d4 {[%clk 0:09:57.4]} 3... Nf6 {[%clk 0:09:29.8]}
4. Nc3 {[%clk 0:09:56.9]} 4... Bb4 {[%clk 0:09:29.3]} 5. cxd5 {[%clk 0:09:43.7]}
5... exd5 {[%clk 0:09:28.7]} 6. Bg5 {[%clk 0:09:43.3]} 6... h6 {[%clk
0:09:16.2]} 7. Bxf6 {[%clk 0:09:20.1]} 7... Qxf6 {[%clk 0:09:16.2]} 8. e3 {[%clk
0:09:18.1]} 8... c6 {[%clk 0:09:10.4]} 9. Be2 {[%clk 0:09:12]} 9... O-O {[%clk
0:09:07.9]} 10. O-O {[%clk 0:09:11.8]} 10... Bd6 {[%clk 0:08:55.3]} 11. a3
{[%clk 0:08:58.9]} 11... Bf5 {[%clk 0:08:51.3]} 12. b4 {[%clk 0:08:56.5]} 12...
a6 {[%clk 0:08:48.5]} 13. Na4 {[%clk 0:08:50.9]} 13... a5 {[%clk 0:06:55.2]} 14.
b5 {[%clk 0:08:15.2]} 14... Nd7 {[%clk 0:06:39.4]} 15. Qb3 {[%clk 0:08:12.5]}
15... Be4 {[%clk 0:05:41.1]} 16. Rfc1 {[%clk 0:07:29.2]} 16... c5 {[%clk
0:05:19.1]} 17. dxc5 {[%clk 0:06:56.4]} 17... Nxc5 {[%clk 0:05:18.5]} 18. Nxc5
{[%clk 0:06:55.1]} 18... Bxc5 {[%clk 0:05:18.8]} 19. Qc3 {[%clk 0:05:46.7]}
19... Qxc3 {[%clk 0:05:07.7]} 20. Rxc3 {[%clk 0:05:48.6]} 20... Bb6 {[%clk
0:05:06.6]} 21. a4 {[%clk 0:05:24.7]} 21... Rac8 {[%clk 0:04:51.5]} 22. Rac1
{[%clk 0:05:24.2]} 22... Rxc3 {[%clk 0:03:00.1]} 23. Rxc3 {[%clk 0:05:26.1]}
23... Re8 {[%clk 0:02:52.3]} 24. Kf1 {[%clk 0:05:10.6]} 24... Re7 {[%clk
0:02:46.2]} 25. Bd3 {[%clk 0:04:52.1]} 25... Bxf3 {[%clk 0:02:42.3]} 26. Rc8+
{[%clk 0:04:50.3]} 1-0

[Event "GrandPrix_30.05"]
[Site "Chess.com"]
[Date "2020.05.30"]
[Round "6"]
[White "PlayChessSimple"]
[Black "fm_magua"]
[Result "1-0"]
[WhiteElo "2182"]
[BlackElo "1895"]
[TimeControl "600+2"]
[EndTime "10:49:08 PDT"]
[Termination "PlayChessSimple won by resignation"]

1. e4 {[%clk 0:09:54.5]} 1... c5 {[%clk 0:09:57.3]} 2. Nf3 {[%clk 0:09:54.8]}
2... Nc6 {[%clk 0:09:57.9]} 3. c3 {[%clk 0:09:55.5]} 3... Nf6 {[%clk 0:09:58.4]}
4. e5 {[%clk 0:09:56.2]} 4... Nd5 {[%clk 0:09:59.7]} 5. Bc4 {[%clk 0:09:57.8]}
5... Nb6 {[%clk 0:10:00.3]} 6. Bb3 {[%clk 0:09:58.8]} 6... c4 {[%clk 0:10:01.8]}
7. Bc2 {[%clk 0:09:59.4]} 7... Qc7 {[%clk 0:10:03.1]} 8. O-O {[%clk 0:09:55.5]}
8... Nxe5 {[%clk 0:10:03.4]} 9. Nxe5 {[%clk 0:09:55.8]} 9... Qxe5 {[%clk
0:10:04.3]} 10. a4 {[%clk 0:09:56.4]} 10... Qc7 {[%clk 0:10:03.1]} 11. d3 {[%clk
0:09:48.7]} 11... cxd3 {[%clk 0:10:03.9]} 12. Qxd3 {[%clk 0:09:49.3]} 12... e6
{[%clk 0:10:04]} 13. Na3 {[%clk 0:09:32.5]} 13... a6 {[%clk 0:09:49]} 14. a5
{[%clk 0:09:30.7]} 14... Nd5 {[%clk 0:09:49.9]} 15. Re1 {[%clk 0:09:25]} 15...
Be7 {[%clk 0:09:50.3]} 16. Nc4 {[%clk 0:09:13.1]} 16... b5 {[%clk 0:09:38.6]}
17. axb6 {[%clk 0:07:46.6]} 17... Nxb6 {[%clk 0:09:38.2]} 18. Nxb6 {[%clk
0:07:42]} 18... Qxb6 {[%clk 0:09:39]} 19. Be3 {[%clk 0:07:43.2]} 19... Qc7
{[%clk 0:09:34.5]} 20. Ra4 {[%clk 0:06:55.9]} 20... Bb7 {[%clk 0:09:26.6]} 21.
Rg4 {[%clk 0:06:54]} 21... g6 {[%clk 0:09:14.3]} 22. Bd4 {[%clk 0:06:26]} 22...
f6 {[%clk 0:08:52.3]} 23. Qh3 {[%clk 0:04:21.8]} 23... Kf7 {[%clk 0:07:57.9]}
24. Rh4 {[%clk 0:04:05.7]} 24... h5 {[%clk 0:07:41]} 25. Bb3 {[%clk 0:03:26.4]}
25... Qc6 {[%clk 0:07:25.7]} 26. Rhe4 {[%clk 0:03:25.5]} 26... Qxe4 {[%clk
0:07:16.9]} 27. Rxe4 {[%clk 0:03:25.8]} 27... Bxe4 {[%clk 0:07:18.8]} 28. Qe3
{[%clk 0:03:16.8]} 28... Bc6 {[%clk 0:07:12.2]} 29. Bc2 {[%clk 0:03:17.1]} 29...
Rab8 {[%clk 0:06:59.3]} 30. b4 {[%clk 0:03:16.5]} 30... Rhg8 {[%clk 0:06:51.4]}
31. h3 {[%clk 0:03:01.1]} 31... Bd6 {[%clk 0:06:35.8]} 32. Bc5 {[%clk
0:02:58.7]} 32... Bxc5 {[%clk 0:06:34.1]} 33. Qxc5 {[%clk 0:02:59.8]} 33... Rb5
{[%clk 0:06:31.6]} 34. Qa7 {[%clk 0:02:48.4]} 34... Ra8 {[%clk 0:06:29.4]} 35.
Qe3 {[%clk 0:02:29.6]} 35... a5 {[%clk 0:06:22.1]} 36. Qh6 {[%clk 0:02:09.1]}
36... Rg8 {[%clk 0:06:12.3]} 37. Qh7+ {[%clk 0:02:06.6]} 37... Rg7 {[%clk
0:06:12.8]} 38. Bxg6+ {[%clk 0:02:05.9]} 1-0

[Event "GrandPrix_30.05"]
[Site "Chess.com"]
[Date "2020.05.30"]
[Round "6"]
[White "Malysch"]
[Black "Sakkcapak"]
[Result "1-0"]
[WhiteElo "2296"]
[BlackElo "2143"]
[TimeControl "600+2"]
[EndTime "10:49:20 PDT"]
[Termination "Malysch won by resignation"]

1. d4 {[%clk 0:10:01.9]} 1... Nf6 {[%clk 0:10:00.3]} 2. c4 {[%clk 0:10:02.6]}
2... g6 {[%clk 0:09:59.6]} 3. g3 {[%clk 0:10:03.5]} 3... Bg7 {[%clk 0:10:00.1]}
4. Bg2 {[%clk 0:10:03.6]} 4... O-O {[%clk 0:10:01]} 5. Nf3 {[%clk 0:10:03.9]}
5... d6 {[%clk 0:10:02]} 6. O-O {[%clk 0:09:55.6]} 6... Nc6 {[%clk 0:10:02.4]}
7. Nc3 {[%clk 0:09:56.8]} 7... a6 {[%clk 0:10:02]} 8. Bf4 {[%clk 0:09:58.2]}
8... Rb8 {[%clk 0:09:38.7]} 9. Rc1 {[%clk 0:09:57.5]} 9... h6 {[%clk 0:09:24]}
10. h3 {[%clk 0:09:23.6]} 10... g5 {[%clk 0:09:21.3]} 11. Be3 {[%clk 0:09:08.4]}
11... Bf5 {[%clk 0:09:15.5]} 12. d5 {[%clk 0:08:59.1]} 12... Na5 {[%clk
0:08:57]} 13. Nd4 {[%clk 0:08:57.7]} 13... Bg6 {[%clk 0:08:52.1]} 14. b3 {[%clk
0:08:56.5]} 14... Qd7 {[%clk 0:08:30.5]} 15. Qd2 {[%clk 0:08:52.1]} 15... c5
{[%clk 0:08:23.1]} 16. dxc6 {[%clk 0:08:47.4]} 16... Nxc6 {[%clk 0:08:23.1]} 17.
Rfd1 {[%clk 0:08:42]} 17... Rfd8 {[%clk 0:07:42.1]} 18. Na4 {[%clk 0:08:15.2]}
18... Nxd4 {[%clk 0:07:31.5]} 19. Bxd4 {[%clk 0:08:13.2]} 19... b5 {[%clk
0:07:14]} 20. Nb6 {[%clk 0:07:47.6]} 20... Qe6 {[%clk 0:07:01.6]} 21. Qe3 {[%clk
0:06:16.8]} 21... Qxe3 {[%clk 0:06:00.4]} 22. Bxe3 {[%clk 0:06:18.7]} 22... Ne4
{[%clk 0:05:41.7]} 23. Nd5 {[%clk 0:06:04.6]} 23... Rd7 {[%clk 0:05:37.6]} 24.
c5 {[%clk 0:05:53.8]} 24... Rc8 {[%clk 0:04:48.3]} 25. c6 {[%clk 0:05:37.5]}
25... Rdc7 {[%clk 0:04:43.8]} 26. Bb6 {[%clk 0:05:16.6]} 26... e6 {[%clk
0:04:03.9]} 27. Nxc7 {[%clk 0:05:08.1]} 27... Bb2 {[%clk 0:04:01.7]} 28. Rc2
{[%clk 0:04:31.9]} 28... Be5 {[%clk 0:04:01.7]} 29. Nxa6 {[%clk 0:03:54.4]}
29... Nc3 {[%clk 0:03:59.4]} 30. Rxc3 {[%clk 0:03:49.2]} 30... Bxc3 {[%clk
0:04:00]} 31. Rxd6 {[%clk 0:03:46.1]} 31... Be5 {[%clk 0:03:57.5]} 32. Rd8+
{[%clk 0:03:43.6]} 32... Rxd8 {[%clk 0:03:55]} 33. Bxd8 {[%clk 0:03:45.5]} 1-0

[Event "GrandPrix_30.05"]
[Site "Chess.com"]
[Date "2020.05.30"]
[Round "6"]
[White "ValeriyGrinev"]
[Black "Cocolino12"]
[Result "1-0"]
[WhiteElo "2151"]
[BlackElo "2201"]
[TimeControl "600+2"]
[EndTime "10:49:21 PDT"]
[Termination "ValeriyGrinev won by resignation"]

1. c4 {[%clk 0:10:01.9]} 1... c6 {[%clk 0:10:00.6]} 2. e4 {[%clk 0:10:00.5]}
2... d5 {[%clk 0:10:00.8]} 3. exd5 {[%clk 0:10:02.4]} 3... cxd5 {[%clk
0:10:02.3]} 4. d4 {[%clk 0:10:03.5]} 4... Nf6 {[%clk 0:10:02.5]} 5. Nc3 {[%clk
0:10:04.9]} 5... Nc6 {[%clk 0:10:02.4]} 6. Nf3 {[%clk 0:10:04.7]} 6... Bg4
{[%clk 0:10:02.2]} 7. cxd5 {[%clk 0:10:06.2]} 7... Nxd5 {[%clk 0:10:01.2]} 8.
Qb3 {[%clk 0:10:07.6]} 8... Bxf3 {[%clk 0:10:02.1]} 9. gxf3 {[%clk 0:10:09.5]}
9... e6 {[%clk 0:09:30.7]} 10. Qxb7 {[%clk 0:10:08.7]} 10... Nxd4 {[%clk
0:08:41.7]} 11. Bb5+ {[%clk 0:10:07.9]} 11... Nxb5 {[%clk 0:08:40.3]} 12. Qc6+
{[%clk 0:10:07.3]} 12... Ke7 {[%clk 0:08:41.4]} 13. Qc5+ {[%clk 0:10:02.1]}
13... Ke8 {[%clk 0:08:35.2]} 14. Qxb5+ {[%clk 0:10:02]} 14... Qd7 {[%clk
0:08:35.1]} 15. Nxd5 {[%clk 0:10:02.8]} 15... exd5 {[%clk 0:08:34.6]} 16. Qd3
{[%clk 0:10:00.8]} 16... Bb4+ {[%clk 0:08:33.6]} 17. Bd2 {[%clk 0:07:57.9]}
17... Bxd2+ {[%clk 0:08:29.8]} 18. Qxd2 {[%clk 0:07:55]} 18... f6 {[%clk
0:08:23.9]} 19. O-O {[%clk 0:07:53.1]} 19... Kf7 {[%clk 0:08:21.8]} 20. Rac1
{[%clk 0:07:39.8]} 20... Rac8 {[%clk 0:08:16.9]} 21. Rfd1 {[%clk 0:07:13.8]}
21... Rxc1 {[%clk 0:08:02.6]} 22. Rxc1 {[%clk 0:07:13.8]} 22... Rd8 {[%clk
0:07:46.8]} 23. Qa5 {[%clk 0:07:14.1]} 23... Kg6 {[%clk 0:07:25.8]} 24. Rc7
{[%clk 0:07:10.5]} 24... Qf5 {[%clk 0:07:11.1]} 25. Qxa7 {[%clk 0:07:01.3]}
25... Qg5+ {[%clk 0:06:43.9]} 26. Kf1 {[%clk 0:07:01.2]} 26... Kh6 {[%clk
0:06:43.8]} 27. Qe3 {[%clk 0:06:59.7]} 27... d4 {[%clk 0:06:43.7]} 28. Qxg5+
{[%clk 0:06:59.9]} 28... Kxg5 {[%clk 0:06:40.6]} 29. Rxg7+ {[%clk 0:06:59.2]}
29... Kf4 {[%clk 0:06:41.7]} 30. Ke2 {[%clk 0:07:00.3]} 30... d3+ {[%clk
0:06:42]} 31. Kd2 {[%clk 0:07:01.5]} 31... h5 {[%clk 0:06:38.3]} 32. Rf7 {[%clk
0:06:38.5]} 32... Rd6 {[%clk 0:06:37.1]} 33. b4 {[%clk 0:06:28.5]} 33... Ra6
{[%clk 0:06:24.7]} 34. Kxd3 {[%clk 0:06:13]} 34... f5 {[%clk 0:06:16.1]} 35. Rh7
{[%clk 0:05:30.4]} 35... Rxa2 {[%clk 0:06:05.4]} 36. Rxh5 {[%clk 0:05:30.6]}
36... Rxf2 {[%clk 0:06:03.2]} 37. Rh3 {[%clk 0:05:31.9]} 37... Rb2 {[%clk
0:05:50.4]} 38. Kc4 {[%clk 0:05:32.8]} 38... Ke3 {[%clk 0:05:51.5]} 39. b5
{[%clk 0:05:31.4]} 39... f4 {[%clk 0:05:49.3]} 40. Kc5 {[%clk 0:05:32.2]} 40...
Kf2 {[%clk 0:05:50]} 41. b6 {[%clk 0:03:38.1]} 41... Kg2 {[%clk 0:05:50.3]} 42.
Rh8 {[%clk 0:03:39.7]} 42... Kxf3 {[%clk 0:05:49.2]} 43. h4 {[%clk 0:03:41.3]}
43... Kg4 {[%clk 0:05:49.7]} 44. h5 {[%clk 0:03:41.9]} 44... f3 {[%clk
0:05:50.4]} 45. h6 {[%clk 0:03:43.2]} 45... Kg5 {[%clk 0:05:50.9]} 46. Rf8
{[%clk 0:03:41.1]} 46... Kxh6 {[%clk 0:05:42.9]} 47. Rxf3 {[%clk 0:03:36.6]}
47... Kg6 {[%clk 0:05:37.3]} 48. Kc6 {[%clk 0:03:35.7]} 48... Rc2+ {[%clk
0:05:37.9]} 49. Kd7 {[%clk 0:03:35]} 49... Rd2+ {[%clk 0:05:37.5]} 50. Kc7
{[%clk 0:03:35.7]} 50... Rc2+ {[%clk 0:05:38.4]} 51. Kb8 {[%clk 0:03:36.6]}
51... Kg7 {[%clk 0:05:38]} 52. b7 {[%clk 0:03:37]} 52... Rc1 {[%clk 0:05:38.4]}
53. Ra3 {[%clk 0:03:37.4]} 53... Rc2 {[%clk 0:05:38.5]} 54. Ka8 {[%clk
0:03:38.4]} 54... Ra2 {[%clk 0:05:38]} 55. Rxa2 {[%clk 0:03:38]} 1-0

[Event "GrandPrix_30.05"]
[Site "Chess.com"]
[Date "2020.05.30"]
[Round "6"]
[White "Misterlose0"]
[Black "Haapana"]
[Result "1-0"]
[WhiteElo "2023"]
[BlackElo "2336"]
[TimeControl "600+2"]
[EndTime "10:49:25 PDT"]
[Termination "Misterlose0 won by resignation"]

1. d4 {[%clk 0:10:01.9]} 1... d5 {[%clk 0:09:59.8]} 2. c4 {[%clk 0:10:02.4]}
2... e6 {[%clk 0:10:00.7]} 3. Nc3 {[%clk 0:10:03]} 3... c5 {[%clk 0:09:52.6]} 4.
cxd5 {[%clk 0:10:01.4]} 4... exd5 {[%clk 0:09:50.6]} 5. Nf3 {[%clk 0:10:00.8]}
5... Nc6 {[%clk 0:09:41.9]} 6. g3 {[%clk 0:10:01.5]} 6... Nf6 {[%clk 0:09:40.3]}
7. Bg2 {[%clk 0:10:02]} 7... Be7 {[%clk 0:09:41.6]} 8. O-O {[%clk 0:10:03.4]}
8... O-O {[%clk 0:09:42.7]} 9. dxc5 {[%clk 0:10:05.3]} 9... Bxc5 {[%clk
0:09:42.7]} 10. Bg5 {[%clk 0:10:06.9]} 10... d4 {[%clk 0:09:43.1]} 11. Bxf6
{[%clk 0:10:08.4]} 11... Qxf6 {[%clk 0:09:41.2]} 12. Nd5 {[%clk 0:10:09.8]}
12... Qd8 {[%clk 0:09:29.7]} 13. Nd2 {[%clk 0:10:11.7]} 13... a6 {[%clk
0:08:40.1]} 14. Rc1 {[%clk 0:09:44.1]} 14... Ba7 {[%clk 0:08:38.7]} 15. Ne4
{[%clk 0:09:39.3]} 15... Re8 {[%clk 0:08:08.4]} 16. Nc5 {[%clk 0:09:27]} 16...
Re5 {[%clk 0:07:50.9]} 17. Qb3 {[%clk 0:09:02.3]} 17... Na5 {[%clk 0:06:49.3]}
18. Qa4 {[%clk 0:08:41.4]} 18... Rxd5 {[%clk 0:06:08.9]} 19. Bxd5 {[%clk
0:08:39.7]} 19... Bh3 {[%clk 0:05:39.5]} 20. Bg2 {[%clk 0:06:10.7]} 20... Bxg2
{[%clk 0:05:34.5]} 21. Kxg2 {[%clk 0:06:12.6]} 21... b5 {[%clk 0:04:03.3]} 22.
Qb4 {[%clk 0:06:08]} 22... Nc6 {[%clk 0:03:18.8]} 23. Qb3 {[%clk 0:06:02]} 23...
Na5 {[%clk 0:03:18.4]} 24. Qf3 {[%clk 0:06:02.3]} 24... Nc4 {[%clk 0:03:16.7]}
25. Nb3 {[%clk 0:05:54]} 25... Nxb2 {[%clk 0:02:49.7]} 26. Rc7 {[%clk
0:05:54.4]} 26... Qe8 {[%clk 0:02:37.4]} 27. Rxf7 {[%clk 0:05:45.7]} 27... Nc4
{[%clk 0:02:15.3]} 28. Re7 {[%clk 0:05:04.5]} 28... Qd8 {[%clk 0:02:12]} 29.
Qf7+ {[%clk 0:05:03.7]} 1-0

[Event "GrandPrix_30.05"]
[Site "Chess.com"]
[Date "2020.05.30"]
[Round "6"]
[White "Igor_Lysyj"]
[Black "kotmizer"]
[Result "0-1"]
[WhiteElo "2348"]
[BlackElo "2228"]
[TimeControl "600+2"]
[EndTime "10:49:33 PDT"]
[Termination "kotmizer won by resignation"]

1. d4 {[%clk 0:09:59.2]} 1... Nf6 {[%clk 0:10:00.9]} 2. c4 {[%clk 0:09:59.6]}
2... c5 {[%clk 0:10:01.8]} 3. d5 {[%clk 0:10:00.3]} 3... e6 {[%clk 0:10:02.4]}
4. Nc3 {[%clk 0:10:01]} 4... exd5 {[%clk 0:10:04]} 5. cxd5 {[%clk 0:10:02.1]}
5... d6 {[%clk 0:10:05.7]} 6. Nf3 {[%clk 0:10:02.9]} 6... g6 {[%clk 0:10:06.7]}
7. Bf4 {[%clk 0:10:02.9]} 7... Bg7 {[%clk 0:10:07.6]} 8. h3 {[%clk 0:09:54.9]}
8... O-O {[%clk 0:10:07.4]} 9. e3 {[%clk 0:09:55.8]} 9... Na6 {[%clk 0:10:05.2]}
10. Bxa6 {[%clk 0:09:56]} 10... bxa6 {[%clk 0:10:05.7]} 11. Rc1 {[%clk 0:09:57]}
11... Rb8 {[%clk 0:10:05.4]} 12. b3 {[%clk 0:09:57.5]} 12... Nh5 {[%clk
0:09:46.3]} 13. Bh2 {[%clk 0:09:57.5]} 13... f5 {[%clk 0:09:47]} 14. O-O {[%clk
0:09:58.2]} 14... f4 {[%clk 0:09:41.2]} 15. Re1 {[%clk 0:09:45.9]} 15... fxe3
{[%clk 0:08:55.8]} 16. Rxe3 {[%clk 0:09:45.3]} 16... Bh6 {[%clk 0:08:51.9]} 17.
Ne4 {[%clk 0:09:45.6]} 17... Bxe3 {[%clk 0:08:33.5]} 18. fxe3 {[%clk 0:09:46.2]}
18... Qe7 {[%clk 0:08:20.5]} 19. Rc4 {[%clk 0:08:13.7]} 19... Rb6 {[%clk
0:08:13.4]} 20. Nfd2 {[%clk 0:07:42.3]} 20... Bb7 {[%clk 0:07:39.6]} 21. g4
{[%clk 0:07:26.9]} 21... Ng7 {[%clk 0:07:02.9]} 22. Nf3 {[%clk 0:07:11.5]} 22...
Qf7 {[%clk 0:06:41.4]} 23. Bf4 {[%clk 0:06:07.8]} 23... Bxd5 {[%clk 0:06:12.5]}
24. Nfg5 {[%clk 0:04:44.7]} 24... Qb7 {[%clk 0:06:10.6]} 25. Nxd6 {[%clk
0:04:45.2]} 25... Qc6 {[%clk 0:05:46.2]} 26. Qc2 {[%clk 0:04:26.6]} 26... Rxf4
{[%clk 0:05:29.8]} 27. Rxf4 {[%clk 0:04:12.6]} 27... Qxd6 {[%clk 0:05:28.9]} 28.
Ne4 {[%clk 0:03:00.9]} 28... Bxe4 {[%clk 0:05:27.2]} 29. Qxe4 {[%clk 0:03:02.1]}
29... Ne6 {[%clk 0:05:25.1]} 30. Rf3 {[%clk 0:02:53.1]} 30... Kg7 {[%clk
0:04:50.2]} 31. h4 {[%clk 0:02:49.1]} 31... Rb4 {[%clk 0:04:34.6]} 0-1

[Event "GrandPrix_30.05"]
[Site "Chess.com"]
[Date "2020.05.30"]
[Round "6"]
[White "Pidzsy"]
[Black "TheEternalPatzer"]
[Result "1-0"]
[WhiteElo "2214"]
[BlackElo "2044"]
[TimeControl "600+2"]
[EndTime "10:49:34 PDT"]
[Termination "Pidzsy won by resignation"]

1. e4 {[%clk 0:10:01.9]} 1... d6 {[%clk 0:09:59.6]} 2. d4 {[%clk 0:10:00.7]}
2... Nf6 {[%clk 0:10:00.5]} 3. Bd3 {[%clk 0:09:56.3]} 3... g6 {[%clk 0:09:41.3]}
4. h4 {[%clk 0:09:56.9]} 4... c5 {[%clk 0:09:23.7]} 5. d5 {[%clk 0:09:53.4]}
5... Bg7 {[%clk 0:09:08.6]} 6. h5 {[%clk 0:09:52.1]} 6... Nxh5 {[%clk
0:08:59.6]} 7. g4 {[%clk 0:09:52.3]} 7... Nf6 {[%clk 0:08:46.9]} 8. f3 {[%clk
0:09:53.4]} 8... h5 {[%clk 0:08:15.9]} 9. g5 {[%clk 0:09:51.5]} 9... Nfd7 {[%clk
0:08:15.6]} 10. c4 {[%clk 0:09:52.1]} 10... b5 {[%clk 0:07:32.8]} 11. Nc3 {[%clk
0:09:41.8]} 11... bxc4 {[%clk 0:07:21.6]} 12. Bxc4 {[%clk 0:09:42.9]} 12... Nb6
{[%clk 0:07:14.5]} 13. Be2 {[%clk 0:09:37.3]} 13... Ba6 {[%clk 0:06:47.1]} 14.
f4 {[%clk 0:09:38.1]} 14... Bxe2 {[%clk 0:06:38.4]} 15. Qxe2 {[%clk 0:09:37.5]}
15... e6 {[%clk 0:05:11.8]} 16. dxe6 {[%clk 0:09:24.3]} 16... fxe6 {[%clk
0:05:10.2]} 17. f5 {[%clk 0:09:25.9]} 17... Bxc3+ {[%clk 0:04:04.6]} 18. bxc3
{[%clk 0:09:24.8]} 18... exf5 {[%clk 0:04:05.3]} 19. exf5+ {[%clk 0:09:22.6]}
19... Qe7 {[%clk 0:03:56.2]} 20. fxg6 {[%clk 0:09:20.4]} 20... Nc6 {[%clk
0:03:37]} 21. Bf4 {[%clk 0:09:09.9]} 21... Qxe2+ {[%clk 0:02:56.8]} 22. Nxe2
{[%clk 0:09:08.4]} 22... O-O-O {[%clk 0:02:51]} 23. O-O-O {[%clk 0:09:04.7]}
23... Nc4 {[%clk 0:02:35.3]} 24. Ng3 {[%clk 0:09:04.6]} 24... Rhg8 {[%clk
0:02:30.9]} 25. Rxh5 {[%clk 0:08:56.6]} 25... Rxg6 {[%clk 0:02:30]} 26. Rh6
{[%clk 0:08:57.6]} 26... Rdg8 {[%clk 0:02:17.2]} 27. Nf5 {[%clk 0:08:42.1]}
27... Rxh6 {[%clk 0:01:00.6]} 28. gxh6 {[%clk 0:08:38.9]} 28... Rf8 {[%clk
0:00:57.3]} 29. h7 {[%clk 0:08:09.8]} 29... Rh8 {[%clk 0:00:51.8]} 30. Nxd6+
{[%clk 0:08:08.4]} 30... Nxd6 {[%clk 0:00:45.5]} 31. Rxd6 {[%clk 0:08:10.3]}
31... Nd8 {[%clk 0:00:40.1]} 32. Rh6 {[%clk 0:07:49.6]} 32... Nf7 {[%clk
0:00:40.7]} 33. Rh5 {[%clk 0:07:50.6]} 33... Kd7 {[%clk 0:00:39.6]} 34. c4
{[%clk 0:07:41]} 34... Ke6 {[%clk 0:00:24.4]} 35. Bd2 {[%clk 0:07:41.3]} 35...
Rc8 {[%clk 0:00:23.4]} 36. Bc3 {[%clk 0:07:39]} 36... Nh8 {[%clk 0:00:23.8]} 37.
Rg5 {[%clk 0:07:32.4]} 37... Kf7 {[%clk 0:00:22.8]} 38. Rg7+ {[%clk 0:07:31.2]}
38... Ke6 {[%clk 0:00:23.5]} 39. Rg8 {[%clk 0:07:32.3]} 1-0